fUST/lending_fUST_20250205
["ID","MTS","AMOUNT","RATE_DAILY","PERIOD"]
[351684492,1738721432037,-300.0,0.00015899,2]
[351684493,1738721432047,-3770.46527907,0.000159,2]
[351684494,1738721432056,-1940.19075585,0.000159,2]
[351684495,1738721432071,-228.31723893,0.000159,2]
[351684496,1738721432081,-26817.75601537,0.0001595,3]
[351684497,1738721432091,-500.72901716,0.00015973,2]
[351684498,1738721432102,-301.08859668,0.0001599,2]
[351684499,1738721432112,-150.0,0.00015994,2]
[351684500,1738721432122,-187.397,0.00015994,2]
[351684501,1738721432132,-150.0,0.00015994,2]
[351684502,1738721432142,-537.0,0.00015994,2]
[351684504,1738721432152,-1974.0,0.00015994,2]
[351684506,1738721432162,-2297.0,0.00015994,2]
[351684508,1738721432171,-152.0,0.00015996,2]
[351684510,1738721432181,-1817.17777598,0.00015998,2]
[351684512,1738721432191,-500.0,0.00015999,2]
[351684514,1738721432202,-522.00480091,0.00015999,2]
[351684516,1738721432212,-172.06856199,0.00015999,2]
[351684518,1738721432221,-235.1698633,0.00015999,2]
[351684520,1738721432230,-276.65269025,0.00015999,2]
[351684522,1738721432242,-510.12654519,0.00015999,2]
[351684524,1738721432251,-500.0,0.00015999,2]
[351684526,1738721432261,-406.77903382,0.00015999,2]
[351684528,1738721432271,-513.1314037,0.00015999,2]
[351684530,1738721432281,-500.0,0.00015999,2]
[351684532,1738721432290,-500.0,0.00015999,2]
[351684534,1738721432300,-500.0,0.00015999,2]
[351684536,1738721432310,-500.0,0.00015999,2]
[351684538,1738721432319,-500.0,0.00015999,2]
[351684540,1738721432328,-478.59756307,0.00015999,2]
[351684542,1738721432337,-500.0,0.00015999,2]
[351684544,1738721432347,-630.15459428,0.00015999,2]
[351684546,1738721432356,-500.0,0.00015999,2]
[351684548,1738721432366,-362.36283433,0.00015999,2]
[351684550,1738721432375,-503.05524928,0.00015999,2]
[351684552,1738721432385,-503.25041854,0.00015999,2]
[351684554,1738721432394,-526.35462843,0.00015999,2]
[351684556,1738721432404,-500.0,0.00015999,2]
[351684558,1738721432414,-500.0,0.00015999,2]
[351684560,1738721432423,-500.0,0.00015999,2]
[351684562,1738721432432,-500.0,0.00015999,2]
[351684564,1738721432441,-500.0,0.00015999,2]
[351684566,1738721432451,-640.6929682,0.00015999,2]
[351684568,1738721432461,-294.98782356,0.00015999,2]
[351684570,1738721432470,-500.0,0.00015999,2]
[351684572,1738721432479,-500.0,0.00015999,2]
[351684574,1738721432489,-500.0,0.00015999,2]
[351684576,1738721432499,-500.0,0.00015999,2]
[351684578,1738721432509,-500.0,0.00015999,2]
[351684580,1738721432519,-250.0,0.00015999,2]
[351684582,1738721432528,-500.0,0.00015999,2]
[351684584,1738721432538,-500.0,0.00015999,2]
[351684586,1738721432547,-178.83693278,0.00015999,2]
[351684588,1738721432556,-300.0,0.00015999,2]
[351684590,1738721432566,-500.0,0.00015999,2]
[351684592,1738721432576,-500.0,0.00015999,2]
[351684594,1738721432585,-500.0,0.00015999,2]
[351684596,1738721432595,-500.0,0.00015999,2]
[351684598,1738721432604,-500.0,0.00015999,2]
[351684600,1738721432613,-500.0,0.00015999,2]
[351684602,1738721432622,-500.0,0.00015999,2]
[351684604,1738721432632,-500.0,0.00015999,2]
[351684606,1738721432641,-500.0,0.00015999,2]
[351684608,1738721432651,-500.0,0.00015999,2]
[351684610,1738721432660,-500.0,0.00015999,2]
[351684612,1738721432669,-500.0,0.00015999,2]
[351684614,1738721432679,-500.0,0.00015999,2]
[351684616,1738721432689,-500.0,0.00015999,2]
[351684618,1738721432698,-500.0,0.00015999,2]
[351684620,1738721432707,-500.0,0.00015999,2]
[351684622,1738721432717,-500.0,0.00015999,2]
[351684624,1738721432726,-500.0,0.00015999,2]
[351684626,1738721432735,-500.0,0.00015999,2]
[351684628,1738721432744,-500.0,0.00015999,2]
[351684630,1738721432754,-500.0,0.00015999,2]
[351684632,1738721432763,-500.0,0.00015999,2]
[351684634,1738721432773,-500.0,0.00015999,2]
[351684636,1738721432782,-500.0,0.00015999,2]
[351684638,1738721432791,-178.83693278,0.00015999,2]
[351684640,1738721432800,-500.0,0.00015999,2]
[351684642,1738721432809,-500.0,0.00015999,2]
[351684644,1738721432819,-611.3149621,0.00015999,2]
[351684646,1738721432829,-500.0,0.00015999,2]
[351684648,1738721432838,-500.0,0.00015999,2]
[351684650,1738721432847,-500.0,0.00015999,2]
[351684652,1738721432856,-500.0,0.00015999,2]
[351684654,1738721432866,-500.0,0.00015999,2]
[351684656,1738721432876,-500.0,0.00015999,2]
[351684658,1738721432885,-500.0,0.00015999,2]
[351684660,1738721432895,-500.0,0.00015999,2]
[351684662,1738721432904,-281.59396342,0.00015999,2]
[351684664,1738721432914,-240.51612593,0.00015999,2]
[351684666,1738721432923,-500.0,0.00015999,2]
[351684668,1738721432933,-500.0,0.00015999,2]
[351684670,1738721432942,-650.0,0.00015999,2]
[351684672,1738721432952,-500.0,0.00015999,2]
[351684674,1738721432962,-500.0,0.00015999,2]
[351684676,1738721432971,-58383.11683011,0.00016,15]
[351684679,1738721432984,-933.12684086,0.00016,15]
[351684683,1738721433017,-2041.73627221,0.00016,15]
[351684689,1738721433060,-4034.64183489,0.00016,15]
[351684691,1738721433072,-3795.67673047,0.00016,15]
[351685032,1738721437779,-1040.63950367,0.000159,2]
[351685033,1738721437789,-497613.28451961,0.00016,15]
[351685034,1738721437800,-27954.31741301,0.00016,15]
[351685035,1738721437814,-1642.79893478,0.00016,15]
[351685036,1738721437825,-12294.1784254,0.00016,15]
[351685037,1738721437837,-9123.45395121,0.00016,15]
[351685038,1738721437849,-398.78971019,0.00016,15]
[351685039,1738721437883,-935.0,0.00016,15]
[351685040,1738721438110,-9500.0,0.00016,15]
[351685059,1738721441698,-4522.72943287,0.00016,15]
[351685060,1738721441711,-265.5,0.00016,15]
[351685061,1738721441734,-77513.94173926,0.00016,15]
[351685091,1738721442890,-3763.0724795,0.00016,15]
[351685099,1738721442984,-311.15699013,0.00016,15]
[351685101,1738721443007,-500.0,0.00016,15]
[351685124,1738721445868,-5557.69249873,0.00016,15]
[351685126,1738721446691,151.0,0.00015,2]
[351685127,1738721466307,349.147313,0.00015005,2]
[351685131,1738721751628,292.9477657,0.00014989,2]
[351685132,1738721787209,24900.0,0.00014964,2]
[351685143,1738722380657,174.573656,0.00014971,2]
[351685144,1738722406137,-294.71445,0.00015258,2]
[351685152,1738722594272,715.1197817,0.00015012,2]
[351685220,1738722632274,-205.28555,0.00015258,2]
[351685222,1738722632284,-47.47574741,0.000155,2]
[351685229,1738722635782,-103.52425259,0.000155,2]
[351685230,1738722635792,-167.09,0.00015766,2]
[351685231,1738722635803,-508.16083174,0.000159,2]
[351685232,1738722635814,-724.31428648,0.000159,2]
[351685233,1738722635825,-300.0,0.00015972,2]
[351685234,1738722635835,-500.0,0.00015973,2]
[351685235,1738722635845,-114.84000216,0.00015973,2]
[351685236,1738722635883,-385.15999784,0.00015973,2]
[351685237,1738722635893,-500.45393399,0.00015973,2]
[351685238,1738722635904,-232.53649454,0.00015973,2]
[351685358,1738722640541,1000.0,0.00015012,2]
[351685557,1738722643005,-270.5457187,0.00015973,2]
[351685559,1738722643014,-229.4542813,0.00015973,2]
[351685673,1738722646121,-270.5457187,0.00015973,2]
[351685676,1738722646131,-504.33558914,0.00015973,2]
[351685678,1738722646140,-500.8508411,0.00015973,2]
[351685681,1738722646150,-251.53301304,0.00015973,2]
[351685684,1738722646159,-260.82849118,0.00015973,2]
[351685687,1738722646168,-161.14911733,0.00015973,2]
[351685689,1738722646177,-502.27156308,0.00015973,2]
[351685691,1738722646186,-500.0,0.00015973,2]
[351685692,1738722646195,-645.09236205,0.00015991,2]
[351685693,1738722646211,-1328.90763795,0.00015991,2]
[351685694,1738722646220,-1056.36541573,0.00015994,2]
[351685696,1738722646231,-1240.63458427,0.00015994,2]
[351685698,1738722646240,-396.0,0.00015994,2]
[351685700,1738722646249,-150.0,0.00015994,2]
[351685702,1738722646258,-873.42332683,0.00016,15]
[351685715,1738722793518,745.39189108,0.00018,30]
[351685716,1738722850078,24900.0,0.0001499,2]
[351685720,1738723233608,250.274423,0.00014963,2]
[351685735,1738723814715,21378.8374732,0.00014917,2]
[351685777,1738723835522,-996.1972926,0.00015111,2]
[351685779,1738723835531,-500.83034715,0.0001526,2]
[351685781,1738723835541,-633.77500067,0.00015873,2]
[351685783,1738723835550,-300.0,0.00015898,2]
[351685784,1738723835559,-169.0,0.00015899,2]
[351685786,1738723835568,-169.0,0.00015899,2]
[351685788,1738723835577,-170.7,0.00015899,2]
[351685790,1738723835587,-155.0,0.00015899,2]
[351685792,1738723835597,-155.0,0.00015899,2]
[351685794,1738723835606,-155.0,0.00015899,2]
[351685796,1738723835615,-155.0,0.00015899,2]
[351685798,1738723835626,-155.0,0.00015899,2]
[351685800,1738723835635,-155.0,0.00015899,2]
[351685802,1738723835645,-155.0,0.00015899,2]
[351685804,1738723835656,-155.05,0.00015899,2]
[351685807,1738723835664,-157.328,0.00015899,2]
[351685809,1738723835673,-552.79197401,0.000159,2]
[351685812,1738723835696,-1676.1947512,0.000159,2]
[351685866,1738723838130,-21378.83747316,0.000159,2]
[351685868,1738723838145,-430.73994371,0.000159,2]
[351685875,1738723838208,-969.44084084,0.000159,2]
[351685975,1738723840366,-1233.24818294,0.000159,2]
[351685988,1738723843327,-9404.8,0.000159,2]
[351685989,1738723843340,-354.86630482,0.000159,2]
[351685990,1738723843416,-1071.31432115,0.000159,2]
[351685991,1738723843426,-270.79253072,0.00015973,2]
[351685992,1738723843436,-922.07538181,0.00015993,2]
[351686146,1738725038302,-300.0,0.00015499,2]
[351686147,1738725038312,-11130.0,0.000155,2]
[351686148,1738725038321,-554.55312563,0.00015893,2]
[351686149,1738725038331,-19383.68748159,0.00015993,2]
[351686150,1738725038342,-3762.91958714,0.00015993,2]
[351686151,1738725038354,-9782.75650443,0.00015993,2]
[351686152,1738725038363,-150.087,0.00015993,2]
[351686153,1738725038372,-537.0,0.00015993,2]
[351686154,1738725038381,-508.49379683,0.00015993,2]
[351686155,1738725038392,-666.95830325,0.00015993,2]
[351686159,1738725040389,-798.54789992,0.00015993,2]
[351686160,1738725040399,-229.70754814,0.00015993,2]
[351686173,1738725043377,-1014.47158201,0.00015993,2]
[351686174,1738725043390,-1052.82086985,0.00015993,2]
[351686175,1738725043400,-396.0,0.00015993,2]
[351686176,1738725043409,-1027.97913015,0.00016,15]
[351686177,1738725043421,-19596.7974,0.00016,15]
[351686193,1738725377063,212.7547548,0.00013973,2]
[351686198,1738726016112,-294.71445,0.00015523,2]
[351686211,1738726218098,197.601142,0.00013973,2]
[351686249,1738726232668,-1631.81855,0.00015368,2]
[351686251,1738726232678,-157.328,0.0001568,2]
[351686254,1738726232687,-485.2339849,0.00015898,2]
[351686256,1738726232697,-644.52443633,0.000159,2]
[351686258,1738726232707,-153.36452098,0.00015912,5]
[351686296,1738726238443,-8.12715802,0.00015912,5]
[351686299,1738726238453,-500.0,0.00015973,2]
[351686301,1738726238464,-500.0,0.00015973,2]
[351686303,1738726238474,-300.0,0.00015992,2]
[351686305,1738726238484,-537.0,0.00015993,2]
[351686307,1738726238493,-1559.47398398,0.00015993,2]
[351686309,1738726238506,-414.52601602,0.00015993,2]
[351686311,1738726238515,-2297.0,0.00015993,2]
[351686313,1738726238526,-396.0,0.00015993,2]
[351686315,1738726238536,-14220.24541752,0.00015993,2]
[351686318,1738726238552,-1002.6431592,0.00015993,2]
[351686486,1738726240645,-352.863898,0.00015993,2]
[351686491,1738726240702,-650.65101388,0.00015993,2]
[351686518,1738726243642,-732.82037388,0.00015993,2]
[351686519,1738726243655,-532.06643434,0.00015993,2]
[351686520,1738726243666,-358.08949814,0.00015993,2]
[351686521,1738726243678,-1085.07349445,0.00015993,2]
[351686525,1738726243823,-1616.66119988,0.00015993,2]
[351686526,1738726243835,-11222.30173538,0.00015993,2]
[351686527,1738726243851,-375.481998,0.00015993,2]
[351686533,1738726246515,-572.5,0.00015993,2]
[351686534,1738726246526,-23723.07194087,0.00015993,2]
[351686535,1738726246537,-4601.07938705,0.00015999,2]
[351686536,1738726485473,445.0342397,0.00015001,2]
[351686537,1738726649597,665.0,0.00020453,120]
[351686538,1738726734413,500.0,0.00014164,2]
[351686539,1738726753337,363.3196669,0.00015002,2]
[351686540,1738727013455,529.4728044,0.00014994,2]
[351686654,1738727181403,582.54,0.00015,2]
[351686655,1738727188218,500.0,0.00015,2]
[351686656,1738727206195,500.0,0.00015,2]
[351686689,1738727312625,3993.35853074,0.00014968,2]
[351686690,1738727314669,5000.0,0.00015012,2]
[351686718,1738727359482,1668.1292857,0.00014981,2]
[351686719,1738727366279,173.15,0.00010959,2]
[351686722,1738727408059,773.0,0.00010959,2]
[351686783,1738727432980,-500.0,0.00015068,2]
[351686784,1738727432993,-166.0,0.00015068,2]
[351686785,1738727433003,-601.13534799,0.0001536,2]
[351686786,1738727433013,-157.328,0.0001568,2]
[351686787,1738727433023,-1824.94834434,0.000159,2]
[351686788,1738727433034,-424.57973677,0.000159,2]
[351686789,1738727433044,-166.99,0.00015983,2]
[351686790,1738727433055,-300.0,0.00015992,2]
[351686791,1738727433065,-1974.0,0.00015993,2]
[351686792,1738727433075,-537.0,0.00015993,2]
[351686793,1738727433086,-799.86733141,0.00015993,2]
[351686794,1738727433098,-1497.13266859,0.00015993,2]
[351686795,1738727433108,-61.73377514,0.00015993,2]
[351686796,1738727433120,-298.20582391,0.00015993,2]
[351686801,1738727438628,-36.06040095,0.00015993,2]
[351686802,1738727438638,-608.77959528,0.00015999,2]
[351686803,1738727438648,-160.39700442,0.00015999,2]
[351686804,1738727438658,-3581.76086685,0.00015999,2]
[351686805,1738727438670,-142371.0318669,0.00015999,2]
[351686806,1738727438682,-874.692819,0.00015999,2]
[351686807,1738727438704,-3815.36511288,0.00015999,2]
[351686808,1738727438716,-37698.50528372,0.00015999,2]
[351686809,1738727438728,-3810.99269599,0.00015999,2]
[351686810,1738727438740,-4550.61025891,0.00015999,2]
[351686811,1738727438765,-1276.2813817,0.00015999,2]
[351686868,1738727440730,-1019.0,0.00015999,2]
[351686870,1738727440783,-2099.02345567,0.00015999,2]
[351686903,1738727443838,-612.004984,0.00015999,2]
[351686909,1738727444106,-8609.60804572,0.00015999,2]
[351686957,1738727446759,-15328.7944957,0.00015999,2]
[351686958,1738727446771,-23175.37279858,0.00015999,2]
[351687031,1738727943542,296.87,0.00010959,2]
[351687032,1738727954295,247.39,0.00010959,2]
[351687033,1738727965098,206.16,0.00010959,2]
[351687034,1738727976051,171.8,0.00010959,2]
[351687035,1738727986774,859.02,0.00010959,2]
[351687036,1738728024681,201.778371,0.00013973,2]
[351687099,1738728631913,-5000.0,0.00015523,2]
[351687101,1738728631922,-201.305,0.0001568,2]
[351687103,1738728631932,-500.0,0.00015741,2]
[351687105,1738728631942,-500.0,0.00015741,2]
[351687107,1738728631951,-300.0,0.00015792,2]
[351687109,1738728631960,-1974.0,0.00015793,2]
[351687111,1738728631969,-537.0,0.00015793,2]
[351687112,1738728631979,-2297.0,0.00015793,2]
[351687114,1738728631988,-371.5072697,0.000159,2]
[351687116,1738728631997,-3521.01,0.000159,2]
[351687118,1738728632007,-152.0,0.00015997,2]
[351687120,1738728632016,-12233.17897832,0.00015999,2]
[351687122,1738728632028,-4870.85932831,0.00015999,2]
[351687124,1738728632039,-746.335558,0.00015999,2]
[351687126,1738728632050,-999.59729104,0.00015999,2]
[351687130,1738728632077,-2312.8,0.00015999,2]
[351687312,1738728637805,-5000.0,0.00015839,2]
[351687313,1738728637815,-2997.68427572,0.00015999,2]
[351687314,1738728637827,-163108.19992814,0.00015999,2]
[351687315,1738728637840,-3918.346181,0.00015999,2]
[351687316,1738728637851,-2851.46325109,0.00015999,2]
[351687317,1738728637863,-8700.20050505,0.00015999,2]
[351687318,1738728637874,-49085.16296823,0.00015999,2]
[351687319,1738728637894,-517.5299952,0.00015999,2]
[351687320,1738728637905,-18133.93319017,0.00015999,2]
[351687321,1738728637916,-528.78757581,0.00015999,2]
[351687322,1738728637927,-718.019524,0.00015999,2]
[351687324,1738728637970,-25178.02018701,0.00015999,2]
[351687325,1738728637982,-4042.24648458,0.00015999,2]
[351687423,1738728639865,-566.17152,0.00015999,2]
[351687427,1738728639877,-334.98124228,0.00015999,2]
[351687430,1738728639888,-398.076,0.00015999,2]
[351687904,1738728643198,-604.0,0.00015999,2]
[351687907,1738728643239,-2640.79952754,0.00015999,2]
[351687922,1738728645948,-2656.85665339,0.000159,2]
[351687923,1738728645959,-396.0,0.00015995,2]
[351687924,1738728645968,-61353.41524815,0.00015999,2]
[351687925,1738728743965,500.0,0.00014164,2]
[351687927,1738728888665,10000.0,0.0002045,120]
[351687928,1738728911037,1838.31810633,0.0002042,120]
[351687929,1738728911066,661.68189367,0.0002042,120]
[351687930,1738728974347,3000.0,0.0002042,120]
[351687931,1738729008781,203.660851,0.00013973,2]
[351687932,1738729014439,898.63,0.00015012,2]
[351687933,1738729062885,447.73,0.00015012,2]
[351687934,1738729149842,21667.9471719,0.00014969,2]
[351687943,1738729361307,4777.10977426,0.00015012,2]
[351687944,1738729384994,1450.6836398,0.00014978,2]
[351687950,1738729724164,7566.45492284,0.00013,2]
[351687995,1738729832092,-782.125,0.00015316,2]
[351687996,1738729832149,-2309.9,0.00015316,2]
[351687997,1738729832206,-279.83021472,0.00015316,2]
[351687998,1738729832217,-1567.89520315,0.00015316,2]
[351688021,1738729837966,-60.24958213,0.00015316,2]
[351688023,1738729837976,-300.0,0.00015677,2]
[351688024,1738729837986,-13257.15227901,0.00015678,2]
[351688025,1738729837995,-325.06886097,0.00015899,2]
[351688026,1738729838005,-410.35895025,0.000159,2]
[351688027,1738729838015,-2391.17098806,0.000159,2]
[351688028,1738729838024,-3286.91727302,0.0001595,2]
[351688029,1738729838034,-500.0,0.00015973,2]
[351688030,1738729838044,-511.48839659,0.0001599,2]
[351688031,1738729838053,-151.0,0.0001599,2]
[351688032,1738729838063,-152.0,0.00015992,2]
[351688033,1738729838072,-537.0,0.00015995,2]
[351688034,1738729838083,-1974.0,0.00015995,2]
[351688035,1738729838093,-2297.0,0.00015995,2]
[351688036,1738729838104,-396.0,0.00015995,2]
[351688037,1738729838114,-50943.00318269,0.00015999,2]
[351688038,1738729838124,-201.30658674,0.00015999,2]
[351688039,1738729838134,-500.98344394,0.00015999,2]
[351688040,1738729838143,-500.0,0.00015999,2]
[351688041,1738729838152,-500.0,0.00015999,2]
[351688042,1738729838162,-500.0,0.00015999,2]
[351688043,1738729838170,-500.0,0.00015999,2]
[351688044,1738729838180,-615.07636576,0.00015999,2]
[351688045,1738729838189,-500.0,0.00015999,2]
[351688046,1738729838197,-500.0,0.00015999,2]
[351688047,1738729838207,-500.0,0.00015999,2]
[351688048,1738729838216,-500.0,0.00015999,2]
[351688049,1738729838226,-316.72299947,0.00015999,2]
[351688050,1738729838235,-500.0,0.00015999,2]
[351688051,1738729838244,-283.40308494,0.00015999,2]
[351688052,1738729838254,-500.0,0.00015999,2]
[351688053,1738729838263,-500.0,0.00015999,2]
[351688054,1738729838272,-500.0,0.00015999,2]
[351688055,1738729838281,-500.0,0.00015999,2]
[351688056,1738729838290,-500.0,0.00015999,2]
[351688057,1738729838298,-500.0,0.00015999,2]
[351688058,1738729838307,-488.52500316,0.00015999,2]
[351688059,1738729838316,-500.0,0.00015999,2]
[351688060,1738729838325,-500.0,0.00015999,2]
[351688061,1738729838334,-500.0,0.00015999,2]
[351688062,1738729838343,-500.0,0.00015999,2]
[351688063,1738729838353,-500.0,0.00015999,2]
[351688064,1738729838363,-500.0,0.00015999,2]
[351688065,1738729838372,-419.49814918,0.00015999,2]
[351688066,1738729838381,-500.0,0.00015999,2]
[351688067,1738729838390,-380.08489194,0.00015999,2]
[351688068,1738729838399,-500.0,0.00015999,2]
[351688069,1738729838407,-500.0,0.00015999,2]
[351688070,1738729838415,-300.0,0.00015999,2]
[351688071,1738729838424,-335.97442589,0.00015999,2]
[351688072,1738729838433,-602.88918411,0.00015999,2]
[351688073,1738729838442,-500.0,0.00015999,2]
[351688074,1738729838451,-500.0,0.00015999,2]
[351688075,1738729838460,-500.0,0.00015999,2]
[351688076,1738729838466,-503.07686475,0.00015999,2]
[351688077,1738729838472,-498.19621427,0.00015999,2]
[351688078,1738729838483,-1.80378573,0.00015999,2]
[351688079,1738729838491,-500.0,0.00015999,2]
[351688080,1738729838498,-500.0,0.00015999,2]
[351688081,1738729838504,-406.57537613,0.00015999,2]
[351688082,1738729838512,-500.0,0.00015999,2]
[351688083,1738729838518,-500.0,0.00015999,2]
[351688084,1738729838525,-500.0,0.00015999,2]
[351688085,1738729838618,-500.0,0.00015999,2]
[351688086,1738729838625,-500.0,0.00015999,2]
[351688087,1738729838632,-500.0,0.00015999,2]
[351688088,1738729838639,-500.0,0.00015999,2]
[351688089,1738729838645,-500.0,0.00015999,2]
[351688090,1738729838653,-180.0,0.00015999,2]
[351688091,1738729838660,-500.0,0.00015999,2]
[351688092,1738729838667,-500.0,0.00015999,2]
[351688093,1738729838674,-500.0,0.00015999,2]
[351688094,1738729838684,-500.0,0.00015999,2]
[351688095,1738729838693,-500.0,0.00015999,2]
[351688096,1738729838702,-500.0,0.00015999,2]
[351688097,1738729838712,-500.0,0.00015999,2]
[351688098,1738729838721,-14236.74665388,0.00016,15]
[351688099,1738729838736,-759.5991286,0.00016,15]
[351688100,1738729838746,-28301.68168639,0.00016,15]
[351688101,1738729838756,-522.63734845,0.00016,15]
[351688102,1738729838776,-1191.34071399,0.00016,15]
[351688189,1738729843059,-2123.9999968,0.00016,15]
[351688191,1738729843071,-651.0,0.00016,15]
[351688194,1738729843083,-6626.43905518,0.00016,15]
[351688203,1738729843168,-2552.8,0.00016,15]
[351688235,1738729846169,-54543.4890241,0.00016,15]
[351688237,1738729879404,204.22146,0.00013973,2]
[351688238,1738729883432,208.8817064,0.00013699,2]
[351688245,1738730569281,519.22,0.00010959,2]
[351688246,1738730579787,432.69,0.00010959,2]
[351688247,1738730601000,661.05,0.00010959,2]
[351688248,1738730611760,250.4,0.00010959,2]
[351688249,1738730622484,208.66,0.00010959,2]
[351688250,1738730633294,173.89,0.00010959,2]
[351688251,1738730644049,869.45,0.00010959,2]
[351688252,1738730744669,178.466246,0.00013699,2]
[351688253,1738730750500,2708.56334789,0.00015012,2]
[351688254,1738730787321,5000.0,0.00015012,2]
[351688331,1738731011164,204.330927,0.00013973,2]
[351688342,1738731032967,-5000.0,0.00015584,2]
[351688343,1738731032977,-213.87258044,0.000159,2]
[351688344,1738731032986,-2152.05388929,0.000159,2]
[351688345,1738731032996,-300.0,0.0001594,2]
[351688346,1738731033005,-5098.60747807,0.00015941,2]
[351688347,1738731033015,-336.86931051,0.00015973,2]
[351688348,1738731033024,-499.0,0.0001599,2]
[351688349,1738731033034,-277.649,0.00015995,2]
[351688350,1738731033044,-537.0,0.00015995,2]
[351688351,1738731033053,-2297.0,0.00015995,2]
[351688352,1738731033063,-500.0,0.00015999,2]
[351688353,1738731033073,-500.85186816,0.00015999,2]
[351688354,1738731033083,-175.24668509,0.00015999,2]
[351688355,1738731033094,-500.0,0.00015999,2]
[351688356,1738731033103,-322.95281957,0.00015999,2]
[351688357,1738731033114,-309.9736505,0.00015999,2]
[351688359,1738731033126,-500.0,0.00015999,2]
[351688361,1738731033137,-500.0,0.00015999,2]
[351688363,1738731033147,-395.564988,0.00015999,2]
[351688365,1738731033157,-422.02242888,0.00015999,2]
[351688367,1738731033167,-69751.2324758,0.00016,15]
[351688403,1738731038211,-9300.50239082,0.00016,15]
[351688404,1738731038223,-1504.44354021,0.00016,15]
[351688405,1738731038237,-277.46854865,0.00016,15]
[351688406,1738731038267,-1312.5676251,0.00016,15]
[351688420,1738731040308,-67199.99633193,0.00016,15]
[351688421,1738731040321,-1903.58118195,0.00016,15]
[351688422,1738731040364,-713.95701685,0.00016,15]
[351688423,1738731040423,-93036.30519116,0.00016,15]
[351688443,1738731552659,181.248605,0.00013699,2]
[351688447,1738731985694,5000.0,0.00015012,2]
[351688453,1738732095767,201.443642,0.00013973,2]
[351688463,1738732232451,-541.19742604,0.00015215,2]
[351688464,1738732232569,-4169.93573357,0.00015215,2]
[351688465,1738732232590,-500.0,0.00015524,2]
[351688466,1738732232602,-500.0,0.00015524,2]
[351688467,1738732232620,-386.13082336,0.00015524,2]
[351688468,1738732232635,-154.47,0.00015748,2]
[351688469,1738732232651,-230.6490467,0.00015839,2]
[351688470,1738732232665,-1004.2549139,0.00015849,2]
[351688471,1738732232683,-265.87934765,0.000159,7]
[351688472,1738732232698,-284.43525334,0.000159,2]
[351688473,1738732232713,-1936.84850037,0.000159,2]
[351688474,1738732232728,-500.0,0.00015973,2]
[351688475,1738732232743,-500.0,0.00015973,2]
[351688476,1738732232757,-500.97647216,0.00015973,2]
[351688477,1738732232772,-500.0,0.00015973,2]
[351688478,1738732232787,-500.0,0.00015973,2]
[351688479,1738732232801,-500.0,0.00015973,2]
[351688480,1738732232816,-500.0,0.00015973,2]
[351688481,1738732232830,-481.48181627,0.0001599,2]
[351688482,1738732232845,-1747.8,0.00015995,2]
[351688483,1738732232861,-254.63867244,0.00015998,2]
[351688484,1738732232875,-500.0,0.00015999,2]
[351688485,1738732232890,-206.79099015,0.00015999,2]
[351688486,1738732232905,-421.56302204,0.00016,15]
[351688487,1738732232926,-9909.84587103,0.00016,15]
[351688488,1738732232944,-525.05090305,0.00016,15]
[351688489,1738732232962,-618.6632773,0.00016,15]
[351688499,1738732238314,-8795.91701905,0.00016,15]
[351688501,1738732238325,-76488.79589573,0.00016,15]
[351688672,1738732240589,-396.0,0.00015899,2]
[351688674,1738732240598,-102.99625122,0.00015998,2]
[351688676,1738732240610,-66.76286374,0.00015998,2]